[Event "Tata Steel Chess India Rapid & Blitz 2023"]
[Site "Kalkata"]
[Date "2023.09.06"]
[Round "4"]
[White "Vachier Lagrave, Maxime"]
[Black "Keymer, Vincent"]
[Result "1-0"]
[WhiteElo "2755"]
[BlackElo "2633"]
[ECO "C45"]
[EventDate "2023.??.??"]
[Annotator "Leitao,Rafael"]
[PlyCount "105"]
[Beauty "6807120512549"]
[EventType "rapid"]
[EventCountry "IND"]
[TimeControl "1500+10"]

1.e4 e5 2.Nf3 Nc6 3.d4 {Vachier-Lagrave is a principled chess player, and he rarely deviates from his favorite Ruy Lopez, but there's a time for everything. The Scotch Opening is a very good alternative and has been played many times by Kasparov, no less.} 3...exd4 4.Nxd4 Nf6 {This is the most ambitious move. The more solid 4...Bc5 is equally popular.} 5.Nxc6 bxc6 6.e5 Qe7 7.Qe2 Nd5 8.h4 {The second most popular move. This curious pawn push supports a possible Bg5 and also a rook lift on h3.} ( 8.c4 {is the main line.} ) 8...Qe6 {There are three alternatives that are nearly as popular. The move played in the game opens the path for the dark-squared bishop.} ( 8...d6 ) ( 8...a5 ) ( 8...f6 ) 9.Nd2 Nb4 {This is probably not the most accurate.} ( 9...a5 {prepares 9...Ba6 and is considered a critical move.} ) 10.Nf3 Ba6 11.c4 c5 {Vacating the c6-square for the knight.} ( 11...d5 $6 {[%c_effect d5;square;d5;type;Inaccuracy;persistent;true] leads to an advantage for White after} 12.a3 $1 {[%c_effect a3;square;a3;type;GreatFind;persistent;true]} 12...Bxc4 13.Qd1 Bxf1 14.Kxf1 Na6 15.b4 ) ( 11...Qg6 {is interesting. A recent game continued:} 12.h5 Qc2 13.Nd4 Qxe2+ 14.Bxe2 c5 15.a3 cxd4 16.axb4 Bxb4+ 17.Bd2 Bxd2+ 18.Kxd2 Bb7 19.Rh4 c5 20.Ra5 Rc8 {with a slight advantage for White in Stevic-Csonka, Ajka 2023.} ) 12.a3 Nc6 13.Bd2 {The bishop heads to c3, supporting the e5-pawn.} 13...Be7 14.Bc3 f6 {A new move.} ( 14...Rb8 {was played in Vasquez-Sanner, email 2008.} ) 15.O-O-O O-O-O 16.exf6 Qxe2 17.Bxe2 Bxf6 18.Bxf6 gxf6 {The endgame is slightly better for White due to the better pawn structure. As a general rule, the fewer pawn islands you have, the better.} 19.Rhe1 ( 19.h5 $1 {[%c_effect h5;square;h5;type;GreatFind;persistent;true] is a good option. The idea is to develop the rook on h4, where it can go to f4 or g4.} ) 19...d6 20.Kd2 {Always remember to centralize the king in the endgame. The monarch is going to be well placed on c3.} 20...Bb7 21.g3 a5 {Useful prophylaxis against a future b2-b4 advance.} 22.Kc3 Ne5 23.Ng1 $1 {[%c_effect g1;square;g1;type;GreatFind;persistent;true] White correctly avoids the exchange and heads with the knight to the f4-square.} 23...Rhg8 24.Nh3 Bc6 ( 24...Bf3 $5 {[%c_effect f3;square;f3;type;Interesting;persistent;true] An interesting concept would be to exchange bishops before White plays Nf4-d5. The position would be more or less equal after} 25.Nf4 Bxe2 26.Rxe2 Kb7 27.Nd5 Rdf8 {followed by ...Rg4.} ) 25.Nf4 Kb7 26.Bd3 $1 {[%c_effect d3;square;d3;type;GreatFind;persistent;true]} 26...h6 {Of course, Black doesn't want to exchange his proud knight on e5.} 27.Bf5 a4 {It's always difficult to decide on pawn advances in the endgame. This pawn may become a weakness later on.} ( 27...Bd7 ) 28.Nd5 Bxd5 29.cxd5 Nf3 $2 {[%c_effect f3;square;f3;type;Mistake;persistent;true] The first real mistake, and one that lands Black in a difficult position.} ( 29...Ka6 $1 {[%c_effect a6;square;a6;type;GreatFind;persistent;true] is better, with the idea of defending the pawn with the king on a5 and occupying the b-file with the rook.} ) 30.Re4 Nd4 31.Rdxd4 $1 {[%c_effect d4;square;d4;type;GreatFind;persistent;true] This cannot even be called a sacrifice since the a-pawn falls, and White is not down material. The light-squared bishop becomes a very strong piece.} 31...cxd4+ 32.Rxd4 c6 ( 32...Ra8 33.Rb4+ {picks up the pawn anyway.} ) 33.dxc6+ ( 33.Rxa4 {is possibly even better:} 33...cxd5 34.Be6 $1 {[%c_effect e6;square;e6;type;GreatFind;persistent;true] followed by Bxd5.} ) 33...Kxc6 34.Rxa4 {Black's position is very difficult to defend: all the pawns are separated, and White's queenside is ready to go forward.} 34...Rge8 35.Rf4 Re5 ( 35...Re1 {is more stubborn.} ) 36.Bd3 Rf8 37.b4 Re1 38.a4 ( 38.b5+ {is even stronger:} 38...Kb6 39.Kb4 {followed by 40.a4 with a winning position.} ) 38...d5 39.a5 Kd6 40.a6 Rc1+ 41.Kb2 ( 41.Kd4 {is natural and good. The king is a monster on d4 and the threat is 42.Rf5.} ) 41...Rd1 42.Rf3 Kc7 43.Kc3 {The king is ready to return.} 43...Rb8 ( 43...Kd6 {is a better defensive attempt. If White plays} 44.b5 $1 {[%c_effect b5;square;b5;type;GreatFind;persistent;true]} ( 44.Kd4 $6 {[%c_effect d4;square;d4;type;Inaccuracy;persistent;true]} 44...f5 $1 {[%c_effect f5;square;f5;type;GreatFind;persistent;true] with some drawing chances.} ) 44...Kc5 45.Be2 Ra1 46.Kb2 Re1 47.Rc3+ {with a winning position.} ) 44.Rxf6 d4+ 45.Kc2 Ra1 46.b5 {White has a material advantage, and the pawns are too advanced. It's all over.} 46...Rb6 47.Rf7+ Kd6 48.a7 Ke6 49.Rh7 Ke5 50.f3 {With the idea of moving the bishop to e4.} 50...Ra2+ 51.Kb3 Ra1 52.Kb4 Ra2 53.Kc5 1-0

[Event "Collegiate Chess League: Fall 2023"]
[Site "Chess.com"]
[Date "2023.10.21"]
[Round "4"]
[White "Raja, Harshit"]
[Black "Lee, Linden"]
[Result "0-1"]
[WhiteElo "2729"]
[BlackElo "2574"]
[ECO "B11"]
[EventDate "2023.??.??"]
[Annotator "rafael"]
[PlyCount "146"]
[Beauty "5635802431047"]
[EventType "team-tourn"]
[TimeControl "300+2"]

{[%evp 0,146,30,24,60,55,55,41,47,47,47,38,44,50,58,30,58,55,46,46,46,46,48,48,48,19,45,42,46,46,45,36,45,30,32,27,27,22,21,4,7,-8,-8,-26,20,23,65,65,35,9,128,-64,-64,-72,-105,-351,-381,-381,0,0,0,-278,-278,-278,-278,-278,-278,-278,-278,-278,-280,-280,-280,-280,-277,-273,-262,-275,-216,-216,-216,-216,-227,-249,-192,-210,-31,-207,-177,-201,-215,-240,-240,-240,-226,-229,-226,-224,-228,-227,-184,-184,-184,-184,-195,-190,-175,-225,-225,-226,-236,-335,-234,-338,-244,-244,-232,-232,-244,-244,-244,-337,-337,-342,-327,-1012,-1015,-1027,-771,-751,-751,-952,-502,-693,-646,-1019,-1020,-1069,-1185,-1327,-1356,-1295,-1741,-1422,-1972,-29967,-2886,-29987,-29988]} 
1.e4 c6 2.Nf3 d5 3.Nc3 Bg4 4.h3 Bxf3 5.Qxf3 e6 6.d4 {White has many alternatives here.} ( 6.d3 ) ( 6.g3 ) ( 6.Be2 ) 6...dxe4 7.Nxe4 {A pawn sacrifice that is suitable for blitz but maybe not for a game in classical control.} ( 7.Qxe4 {is safer.} ) 7...Nd7 ( 7...Qxd4 $1 {[%c_effect d4;square;d4;type;GreatFind;persistent;true] I believe Black should take this pawn, and once I did it in a rapid game against my friend, GM Felgaer. It followed:} 8.Bd3 Nd7 9.Be3 Qd5 {and my opponent was unable to gain compensation. Felgaer-Leitao, Santos (rapid) 2005.} ) 8.Bd3 Ngf6 9.c3 Nxe4 10.Bxe4 ( 10.Qxe4 {is more accurate. After} 10...Nf6 11.Qe2 {The queen is better placed on e2. We will find out the reason when analyzing the game continuation.} ) 10...Nf6 11.Bc2 Qd5 $1 {[%c_effect d5;square;d5;type;GreatFind;persistent;true] This is the point. White would prefer to keep queens on the board, so Black's move is unpleasant to face.} 12.Qg3 ( 12.Qxd5 {Of course, it's not the end of the world to exchange queens when all three captures are possible. In all cases the position is close to equality.} 12...Nxd5 ( 12...cxd5 ) ( 12...exd5 ) ) 12...Nh5 ( 12...g6 {is more natural, and it was played in a GM game.} 13.O-O Bg7 14.Bb3 Qd7 15.Re1 O-O 16.Bg5 {with a slight advantage for White in Safarli-Solak, Antalya 2013.} ) 13.Qe3 Nf6 14.O-O Bd6 15.Bb3 ( 15.Re1 O-O 16.Qd3 {is possible, setting up the well-known queen and bishop battery. White is slightly better.} ) 15...Qh5 16.Bd1 Qf5 17.g4 {It's always difficult to decide on the advance of the kingside pawns, especially when you have more solid options.} ( 17.c4 {This avoids the knight jump to d5 and should always be considered.} ) ( 17.Bf3 Nd5 18.Qe2 {also leads to a slight plus for White.} ) 17...Qa5 ( 17...Qg6 {is an interesting alternative, but in a blitz game, a player certainly has fears regarding queen safety.} ) 18.Qf3 Qc7 19.Kg2 $6 {[%c_effect g2;square;g2;type;Inaccuracy;persistent;true] This invites Black's plan.} ( 19.c4 {is better, avoiding ...Nd5.} ) 19...Nd5 20.c4 Nf4+ 21.Kh1 ( 21.Bxf4 {is reasonable. The position is a bit more comfortable for Black after} 21...Bxf4 ) 21...Ng6 ( 21...g5 {is a solid alternative, reinforcing the knight's position.} ) 22.Bc2 Nh4 ( 22...Qe7 $1 {[%c_effect e7;square;e7;type;GreatFind;persistent;true] is the right way to preserve the initiative. The bishop now can retreat to a better diagonal after c4-c5, and the queen is looking at the kingside.} ) 23.Qe4 h5 $6 {[%c_effect h5;square;h5;type;Inaccuracy;persistent;true]} ( 23...O-O-O {is better.} ) 24.c5 ( 24.g5 {is also unpleasant:} 24...Nf5 ( 24...Ng6 25.f4 $1 {[%c_effect f4;square;f4;type;GreatFind;persistent;true]} ) 25.c5 Be7 26.g6 $1 {[%c_effect g6;square;g6;type;GreatFind;persistent;true] The e6-pawn will suffer, and Black has problems on the light squares.} ) 24...Bh2 $2 {[%c_effect h2;square;h2;type;Mistake;persistent;true] This bold move would never cross my mind, although it worked well in the game.} ( 24...Be7 25.g5 Nf5 ( 25...Ng6 26.Bb3 ) 26.g6 $1 {[%c_effect g6;square;g6;type;GreatFind;persistent;true] with the initiative.} ) 25.f4 $2 {[%c_effect f4;square;f4;type;Mistake;persistent;true] The game turns around immediately. White actually has three winning alternatives.} ( 25.g5 {is a very sophisticated win:} 25...Nf5 ( 25...Ng6 26.f4 ) 26.d5 $1 {[%c_effect d5;square;d5;type;GreatFind;persistent;true] A difficult move.} 26...cxd5 27.Qa4+ {This is the idea.} 27...Kf8 28.Bxf5 exf5 29.Re1 {The computer proves that White is winning, but this assessment is not immediately clear.} ) ( 25.gxh5 Rxh5 ( 25...Nf5 26.Qg4 ) 26.f4 Bg3 27.Qe3 {The bishop cannot be saved.} ) ( 25.Bg5 Ng6 ( 25...hxg4 26.Qxg4 ) 26.f4 hxg4 27.Kxh2 Rxh3+ 28.Kg2 {Compared to the game, the knight is in a worse position, and Black has no compensation for the piece.} ) 25...hxg4 26.Kxh2 ( 26.hxg4 {doesn't help:} 26...Ng6 27.Kg2 O-O-O {with a winning attack. White's king is without shelter, for instance:} 28.Be3 Rh4 29.Qf3 f5 $1 {[%c_effect f5;square;f5;type;GreatFind;persistent;true]} 30.gxf5 Bxf4 ) 26...Nf5 {Surprisingly, White is lost. The h3-pawn falls, and the attack is too strong.} 27.Qe5 $2 {[%c_effect e5;square;e5;type;Mistake;persistent;true]} ( 27.Rh1 {is objectively the best move, but things look ugly after} 27...O-O-O ) 27...Rxh3+ 28.Kg1 Rg3+ $2 {[%c_effect g3;square;g3;type;Mistake;persistent;true] Black had a beautiful winning combination. I feel bad giving this move a question mark, as the right one is really difficult to see in a blitz game.} ( 28...Qd8 $3 {[%c_effect d8;square;d8;type;Brilliant;persistent;true] 28...Qe7 is the same.} 29.Bxf5 Qh4 30.Be4 Qg3+ 31.Bg2 Qh2+ 32.Kf2 Rf3+ 33.Ke1 Qg3+ $1 {[%c_effect g3;square;g3;type;GreatFind;persistent;true]} 34.Kd1 Qxg2 35.Rxf3 gxf3 {After this forced sequence, Black wins material.} 36.Bd2 Qg1+ 37.Qe1 f2 $1 {[%c_effect f2;square;f2;type;GreatFind;persistent;true]} ) ( 28...Qe7 ) 29.Kf2 Rf3+ 30.Ke1 $2 {[%c_effect e1;square;e1;type;Mistake;persistent;true] Too optimistic.} ( 30.Kg1 {finishes the game in perpetual check.} ) 30...Qa5+ 31.Bd2 ( 31.Ke2 {loses (among others) to} 31...Ng3+ ) 31...Rxf1+ 32.Kxf1 Qxd2 33.Bxf5 g3 $1 {[%c_effect g3;square;g3;type;GreatFind;persistent;true] The final touch: Black regains the bishop and achieves a winning material advantage.} 34.Qe2 Qxf4+ 35.Kg2 Qxf5 36.Rf1 Qd5+ 37.Qf3 Qxf3+ 38.Rxf3 f6 ( 38...Rd8 {is probably simpler.} ) 39.Rxg3 Kf7 40.Rb3 Rb8 ( 40...b5 {is good enough:} 41.cxb6 axb6 42.Rxb6 Rxa2 ) 41.a4 b6 42.Kf3 Rh8 $2 {[%c_effect h8;square;h8;type;Mistake;persistent;true] A blunder that throws away the game.} ( 42...f5 {followed by Kf6, g7-g5 with an easy win.} ) 43.Kg2 $2 {[%c_effect g2;square;g2;type;Mistake;persistent;true] A blunder in return.} ( 43.cxb6 $1 {[%c_effect b6;square;b6;type;GreatFind;persistent;true] wins a pawn back.} 43...axb6 ( 43...Rh3+ $2 {[%c_effect h3;square;h3;type;Mistake;persistent;true] Both players certainly missed that this move is not possible:} 44.Kg2 Rxb3 45.bxa7 {There's no way to stop the a-pawn.} ) 44.Rxb6 ) 43...bxc5 {Now Black is winning again, and this evaluation remains unchanged.} 44.dxc5 Re8 ( 44...Rh5 {is also good.} 45.Rb7+ Kg6 46.b4 a5 $1 {[%c_effect a5;square;a5;type;GreatFind;persistent;true]} ) 45.Rb7+ Re7 46.Rb8 Rc7 {Black is ready to advance the three passed pawns.} 47.b4 e5 48.Kf3 Ke6 49.Rd8 Rb7 ( 49...Kf5 {is simple and good.} ) 50.b5 cxb5 51.c6 Rc7 52.axb5 {The c6-pawn is not good enough to save White.} 52...f5 53.Ke3 g5 54.Kd3 g4 55.Kc4 Rg7 56.Re8+ Kd6 57.Rd8+ Kc7 58.Ra8 Kd6 59.Rd8+ Ke6 60.Re8+ Re7 61.Rg8 e4 $1 {[%c_effect e4;square;e4;type;GreatFind;persistent;true]} 62.Kc5 e3 63.Rh8 f4 {Three passed pawns are too much.} 64.Rh6+ Kf5 65.Rh5+ Ke4 66.Kd6 Rg7 67.Re5+ Kf3 68.c7 Rxc7 69.Kxc7 g3 70.Kb7 g2 71.Rg5 e2 72.Kxa7 e1=Q 73.b6 Qe7+ 0-1